bitfinex/quotes_BTCUSD_20250714
["timestamp","ask_amount","ask_price","bid_price","bid_amount"]
[1752489879206,0.18868509,121950.0,121940.0,0.57665617]
[1752489879694,0.18868509,121950.0,121940.0,0.57661617]
[1752489879926,0.18048521,121950.0,121940.0,0.57661617]
[1752489880370,0.17228527,121950.0,121940.0,0.44045617]
[1752489880587,0.17228527,121950.0,121940.0,0.57661617]
[1752489881283,0.18048508,121950.0,121940.0,0.58481692]
[1752489881740,0.18048508,121950.0,121940.0,0.57661617]
[1752489881962,0.18048508,121950.0,121940.0,0.58481692]
[1752489882494,0.18048434,121950.0,121940.0,0.76519316]
[1752489882686,0.18868415,121950.0,121940.0,0.77339351]
[1752489882939,0.18868415,121950.0,121940.0,0.78159392]
[1752489883311,0.18868415,121950.0,121940.0,0.78159345]
[1752489883521,0.18868415,121950.0,121940.0,0.76519282]
[1752489883991,0.19688403,121950.0,121940.0,0.76519282]
[1752489884403,0.19688403,121950.0,121940.0,0.75699241]
[1752489885047,0.19688403,121950.0,121940.0,0.76519282]
[1752489885455,0.19688403,121950.0,121940.0,0.75699241]
[1752489885654,0.20508404,121950.0,121940.0,0.75699241]
[1752489885814,0.20508397,121950.0,121940.0,0.76519296]
[1752489886029,0.0164827,121950.0,121940.0,0.64547365]
[1752489886260,8.362e-05,121950.0,121940.0,0.78151372]
[1752489886502,0.01648283,121950.0,121940.0,0.86286043]
[1752489886710,0.00828316,121950.0,121940.0,0.86286043]
[1752489886949,0.01648283,121950.0,121940.0,0.86286043]
[1752489888065,0.18048447,121950.0,121940.0,0.7104198]
[1752489888281,0.18868435,121950.0,121940.0,0.85466015]
[1752489888505,0.00828316,121950.0,121940.0,0.86286043]
[1752489888719,0.01648283,121950.0,121940.0,0.86282043]
[1752489889363,0.02468257,121950.0,121940.0,0.86282043]
[1752489891555,8.362e-05,121950.0,121940.0,0.87732128]
[1752489891778,0.00828309,121950.0,121940.0,0.74136128]
[1752489891994,0.00828309,121950.0,121940.0,0.87732128]
[1752489892214,0.00828309,121950.0,121940.0,0.52220379]
[1752489892215,0.17228473,121950.0,121940.0,0.52220379]
[1752489892441,0.18868415,121950.0,121940.0,0.72496112]
[1752489892675,0.19688409,121950.0,121940.0,0.86908153]
[1752489892893,0.0164827,121950.0,121940.0,0.87728181]
[1752489893545,0.02468244,121950.0,121940.0,0.87728181]
[1752489893758,0.03288232,121950.0,121940.0,0.87728188]
[1752489894247,0.02468244,121950.0,121940.0,0.87728141]
[1752489894663,0.03288232,121950.0,121940.0,0.87728141]
[1752489895082,0.19688396,121950.0,121940.0,0.86088078]
[1752489895297,0.20508397,121950.0,121940.0,0.86088078]
[1752489895506,0.19688396,121950.0,121940.0,0.86088078]
[1752489895732,0.20508397,121950.0,121940.0,0.71676037]
[1752489895960,0.20508397,121950.0,121940.0,0.85264037]
[1752489896204,0.19688396,121950.0,121940.0,0.71676037]
[1752489896419,0.19688396,121950.0,121940.0,0.86904113]
[1752489896657,0.20508397,121950.0,121940.0,0.86084078]
[1752489897732,0.20508397,121950.0,121940.0,0.72496078]
[1752489897970,0.19688396,121950.0,121940.0,0.87724141]
[1752489898394,0.20508397,121950.0,121940.0,0.86904113]
[1752489898603,0.20508397,121950.0,121940.0,0.86084078]
[1752489899040,0.20508397,121950.0,121940.0,0.85264037]
[1752489899407,0.20508397,121950.0,121940.0,0.84443989]
[1752489899560,0.1968845,121950.0,121940.0,0.85264044]
[1752489899760,0.1968845,121950.0,121940.0,0.86084092]
[1752489900368,0.1968845,121950.0,121940.0,0.85264044]
[1752489900581,0.19688497,121950.0,121940.0,0.8526005]
[1752489900790,0.19688497,121950.0,121940.0,0.86080105]
[1752489900999,0.18868482,121950.0,121940.0,0.7331614]
[1752489901205,0.18048488,121950.0,121940.0,0.87716168]
[1752489901407,0.18048488,121950.0,121940.0,0.8689614]
[1752489901571,0.18868489,121950.0,121940.0,0.8689614]
[1752489901829,0.18868489,121950.0,121940.0,0.86076105]
[1752489902034,0.18868489,121950.0,121940.0,0.87716194]
[1752489902235,0.18868489,121950.0,121940.0,0.86076085]
[1752489902386,0.18868489,121950.0,121940.0,0.85256037]
[1752489902870,0.18868489,121950.0,121940.0,0.84435982]
[1752489903079,0.18868489,121950.0,121940.0,0.85256037]
[1752489903800,0.18868489,121950.0,121940.0,0.52204372]
[1752489904016,0.18868489,121950.0,121940.0,0.85252044]
[1752489904228,0.18868489,121950.0,121940.0,0.8525205]
[1752489904476,0.18868489,121950.0,121940.0,0.7167605]
[1752489904680,0.18868489,121950.0,121940.0,0.8525205]
[1752489904835,0.18868489,121950.0,121940.0,0.86072105]
[1752489905041,0.18868489,121950.0,121940.0,0.86892146]
[1752489905246,0.19688497,121950.0,121940.0,0.86892153]
[1752489905447,0.19688497,121950.0,121940.0,0.86072105]
[1752489905706,0.18868523,121950.0,121940.0,0.67210413]
[1752489905872,0.18868523,121950.0,121940.0,0.70855996]
[1752489906100,0.18868523,121950.0,121940.0,0.84427996]
[1752489906926,0.18868523,121950.0,121940.0,0.71676064]
[1752489907085,0.18048535,121950.0,121940.0,0.85248064]
[1752489907500,0.18048535,121950.0,121940.0,0.86068119]
[1752489907701,0.18048535,121950.0,121940.0,0.86068125]
[1752489907905,0.18048535,121950.0,121940.0,0.86064125]
[1752489909456,0.18048535,121950.0,121940.0,0.8688418]
[1752489909836,0.18048535,121950.0,121940.0,0.86064125]
[1752489910039,0.18048535,121950.0,121940.0,0.8688418]
[1752489910653,0.18048535,121950.0,121940.0,0.86064125]
[1752489910868,0.18048535,121950.0,121940.0,0.87704228]
[1752489911066,0.18048535,121950.0,121940.0,0.83603921]
[1752489911278,0.18048535,121950.0,121940.0,0.8524405]
[1752489911495,0.18048535,121950.0,121940.0,0.86064105]
[1752489911868,0.18048535,121950.0,121940.0,0.86064098]
[1752489912531,0.18048535,121950.0,121940.0,0.86064105]
[1752489912963,0.18048535,121950.0,121940.0,0.86884153]
[1752489913589,0.18048535,121950.0,121940.0,0.86064105]
[1752489913775,0.18048535,121950.0,121940.0,0.8524405]
[1752489914163,0.18048535,121950.0,121940.0,0.84423989]
[1752489914593,0.18048535,121950.0,121940.0,0.7167605]
[1752489914746,0.18048535,121950.0,121940.0,0.86056098]
[1752489914956,0.18048535,121950.0,121940.0,0.86056105]
[1752489915157,0.18048501,121950.0,121940.0,0.87696181]
[1752489915811,0.00828309,121950.0,121940.0,1.06367798]
[1752489916160,0.02468251,121950.0,121940.0,0.74136181]
[1752489916376,0.02468251,121950.0,121940.0,0.87692181]
[1752489918082,0.03288245,121950.0,121940.0,0.87692181]
[1752489918313,0.03288245,121950.0,121940.0,0.74136181]
[1752489918528,0.03288245,121950.0,121940.0,0.87688181]
[1752489918708,0.03288239,121950.0,121940.0,0.87688181]
[1752489919131,0.20508404,121950.0,121940.0,0.87688188]
[1752489919368,0.0164827,121950.0,121940.0,0.87688148]
[1752489919576,0.02468251,121950.0,121940.0,0.87688148]
[1752489920856,0.03288239,121950.0,121940.0,0.87688148]
[1752489921085,0.03288239,121950.0,121940.0,1.27988761]
[1752489922684,0.02468251,121950.0,121940.0,1.27988761]
[1752489922871,0.03288245,121950.0,121940.0,1.27988761]
[1752489923092,0.03288239,121950.0,121940.0,1.27988761]
[1752489924165,0.04108233,121950.0,121940.0,1.27988761]
[1752489925324,0.03288239,121950.0,121940.0,1.27988761]
[1752489926371,0.04108233,121950.0,121940.0,1.27988761]
[1752489927006,0.03288239,121950.0,121940.0,1.27988761]
[1752489927216,0.02468251,121950.0,121940.0,1.27988761]
[1752489927649,0.03288239,121950.0,121940.0,1.27988761]
[1752489928521,0.04108233,121950.0,121940.0,1.14436761]
[1752489928726,0.04108233,121950.0,121940.0,1.27972761]
[1752489929150,0.03288239,121950.0,121940.0,1.27972761]
[1752489930637,0.04108233,121950.0,121940.0,1.27972761]
[1752489931558,0.03288239,121950.0,121940.0,1.27972761]
[1752489932936,0.02468244,121950.0,121940.0,1.27972761]
[1752489933147,0.03288225,121950.0,121940.0,1.27972761]
[1752489933347,0.04108213,121950.0,121940.0,1.27972761]
[1752489933554,0.16161178,121960.0,121950.0,0.17220172]
[1752489933762,0.16357178,121960.0,121950.0,0.79364093]
[1752489933966,0.16357178,121960.0,121950.0,0.62143921]
[1752489934627,0.16357178,121960.0,121950.0,0.79364093]
[1752489935252,0.16357178,121960.0,121950.0,0.80184094]
[1752489936269,0.16357178,121960.0,121950.0,0.81004088]
[1752489936762,0.16357178,121960.0,121950.0,0.31829274]
[1752489936990,0.16357178,121960.0,121950.0,0.80184094]
[1752489939263,0.16357178,121960.0,121950.0,0.31009273]
[1752489939487,0.16357178,121960.0,121950.0,0.80184094]
[1752489942475,0.16357178,121960.0,121950.0,0.31009273]
[1752489942686,0.16357178,121960.0,121950.0,0.79364093]
[1752489943448,0.16357178,121960.0,121950.0,0.13789101]
[1752489943658,0.16357178,121960.0,121950.0,0.62143921]
[1752489944719,0.16357178,121960.0,121950.0,0.48615921]
[1752489944928,0.16357178,121960.0,121950.0,0.62123921]
[1752489948974,0.16357178,121960.0,121950.0,0.24438511]
[1752489949196,0.22654178,121960.0,121950.0,0.05051101]
[1752489949420,0.53339357,121960.0,121950.0,0.05051101]
[1752489949666,0.61474068,121960.0,121950.0,0.05051101]
[1752489949889,0.85651478,121960.0,121950.0,0.00051101]
[1752489950106,0.61474068,121960.0,121950.0,0.00051101]
[1752489950319,0.74970068,121960.0,121950.0,0.00051101]
[1752489950543,0.61474068,121960.0,121950.0,0.00051101]
[1752489950765,0.74970068,121960.0,121950.0,0.00051101]
[1752489951027,0.37296658,121960.0,121950.0,0.00051101]
[1752489951247,0.30788889,121960.0,121950.0,0.00051101]
[1752489951465,0.30788889,121960.0,121950.0,0.13543101]
[1752489951681,0.54966299,121960.0,121950.0,0.13543101]
[1752489951927,0.30788889,121960.0,121950.0,0.13543101]
[1752489954566,0.54966299,121960.0,121950.0,0.13543101]
[1752489955072,0.54966299,121960.0,121950.0,0.13539101]
[1752489955286,0.30788889,121960.0,121950.0,0.13539101]
[1752489955498,0.54966299,121960.0,121950.0,0.13539101]
[1752489955694,0.30788889,121960.0,121950.0,0.13539101]
[1752489955910,0.54966299,121960.0,121950.0,0.13539101]
[1752489956766,0.30788889,121960.0,121950.0,0.13539101]
[1752489957034,0.54966299,121960.0,121950.0,0.13539101]
[1752489958186,0.30788889,121960.0,121950.0,0.13539101]
[1752489958408,0.54966299,121960.0,121950.0,0.13539101]
[1752489960572,0.54966299,121960.0,121950.0,0.00051101]
[1752489960813,0.22654178,121960.0,121950.0,0.61881921]
[1752489961051,0.16161178,121960.0,121950.0,0.53930921]
[1752489961293,0.16161178,121960.0,121950.0,0.67406921]
[1752489961524,0.16161178,121960.0,121950.0,0.73646921]
[1752489962214,0.16261178,121960.0,121950.0,0.73646921]
[1752489963178,0.16261178,121960.0,121950.0,0.57531199]
[1752489965006,0.16361178,121960.0,121950.0,0.25292101]
[1752489965222,0.16361178,121960.0,121950.0,0.44055199]
[1752489965436,0.16361178,121960.0,121950.0,0.57523199]
[1752489966384,0.16361178,121960.0,121950.0,0.44055199]
[1752489966615,0.16361178,121960.0,121950.0,0.57519199]
[1752489968960,0.16361178,121960.0,121950.0,0.51275199]
[1752489969625,0.16361178,121960.0,121950.0,0.05576101]
[1752489969847,0.16361178,121960.0,121950.0,0.51275199]
[1752489970067,0.16361178,121960.0,121950.0,0.37815199]
[1752489970348,0.16565178,121960.0,121950.0,0.37815199]
[1752489970552,0.16565178,121960.0,121950.0,0.50947199]
[1752489970768,0.16884178,121960.0,121950.0,0.50947199]
[1752489971058,0.16884178,121960.0,121950.0,0.50953199]
[1752489971683,0.16565178,121960.0,121950.0,0.50953199]
[1752489972661,0.16565178,121960.0,121950.0,0.18714101]
[1752489972869,0.16565178,121960.0,121950.0,0.37497199]
[1752489973051,0.16884178,121960.0,121950.0,0.37497199]
[1752489973264,0.16884178,121960.0,121950.0,0.50949199]
[1752489974141,0.16565178,121960.0,121950.0,0.50949199]
[1752489974348,0.16565178,121960.0,121950.0,0.50945199]
[1752489974780,0.16565178,121960.0,121950.0,0.37497199]
[1752489975016,0.16565178,121960.0,121950.0,0.50945199]
[1752489976014,0.16884178,121960.0,121950.0,0.05057101]
[1752489976231,0.23104178,121960.0,121950.0,0.50744199]
[1752489976660,0.16884178,121960.0,121950.0,0.50744199]
[1752489978471,0.16884178,121960.0,121950.0,0.18505101]
[1752489978684,0.16884178,121960.0,121950.0,0.50744199]
[1752489980415,0.16565178,121960.0,121950.0,0.50945199]
[1752489980850,0.16565178,121960.0,121950.0,0.18706101]
[1752489981064,0.16565178,121960.0,121950.0,0.50945199]
[1752489984648,0.16565178,121960.0,121950.0,0.18706101]
[1752489984853,0.16565178,121960.0,121950.0,0.50925199]
[1752489985062,0.16565178,121960.0,121950.0,0.42869326]
[1752489992348,0.22968178,121960.0,121950.0,0.05057101]
[1752489992559,0.22968178,121960.0,121950.0,0.42652326]
[1752489993010,0.16858178,121960.0,121950.0,0.42652326]
[1752489995215,0.16858178,121960.0,121950.0,0.42851326]
[1752489995668,0.16565178,121960.0,121950.0,0.42851326]
[1752489997296,0.16361178,121960.0,121950.0,0.49185326]
[1752489999101,0.002,121960.0,121950.0,1.45204594]
[1752489999325,0.002,121960.0,121950.0,1.60058679]
[1752489999765,0.001,121960.0,121950.0,1.60058679]
[1752489999987,0.02459525,121970.0,121960.0,0.2495856]
[1752490000206,0.03279385,121970.0,121960.0,1.05841946]
[1752490000428,0.03279385,121970.0,121960.0,1.06155946]
[1752490000719,0.03279385,121970.0,121960.0,1.19551946]
[1752490001150,0.03279385,121970.0,121960.0,1.20785617]
[1752490001359,0.02459525,121970.0,121960.0,1.20785617]
[1752490001571,0.02459525,121970.0,121960.0,1.20885617]
[1752490002006,0.00819779,121980.0,121970.0,0.25967174]
[1752490002189,0.00819779,121980.0,121970.0,0.89125079]
[1752490002190,0.00819746,121980.0,121970.0,0.89125079]
[1752490002421,0.18334414,121990.0,121980.0,0.23195936]
[1752490002632,0.18334414,121990.0,121980.0,0.85467386]
[1752490003092,0.18334414,121990.0,121980.0,0.69323721]
[1752490003296,0.18334414,121990.0,121980.0,0.7014352]
[1752490003504,0.17514689,121990.0,121980.0,0.52927591]
[1752490004223,0.17614689,121990.0,121980.0,0.52107785]
[1752490004498,0.18023874,121990.0,121980.0,0.38715785]
[1752490004656,0.18023874,121990.0,121980.0,0.52103785]
[1752490005260,0.18023874,121990.0,121980.0,0.38715785]
[1752490005796,0.18023874,121990.0,121980.0,0.52103785]
[1752490006570,0.18023874,121990.0,121980.0,0.52099785]
[1752490007464,0.18023874,121990.0,121980.0,0.06493]
[1752490007664,0.18023874,121990.0,121980.0,0.52095785]
[1752490009767,0.18023874,121990.0,121980.0,0.06493]
[1752490009994,0.18023874,121990.0,121980.0,0.52091785]
[1752490011390,0.18023874,121990.0,121980.0,0.38715785]
[1752490011691,0.18023874,121990.0,121980.0,0.52091785]
[1752490014340,0.17614649,121990.0,121980.0,0.69066425]
[1752490014656,0.16794957,121990.0,121980.0,0.51850496]
[1752490015082,0.17001957,121990.0,121980.0,0.05199]
[1752490015268,0.17215923,121980.0,121970.0,0.05314]
[1752490015446,0.17422923,121980.0,121970.0,0.18877]
[1752490015681,0.17422923,121980.0,121970.0,0.51099785]
[1752490016506,0.17422923,121980.0,121970.0,0.37835785]
[1752490016751,0.17622923,121980.0,121970.0,0.001]
[1752490016994,0.56055708,121980.0,121970.0,0.051]
[1752490017209,0.64190419,121980.0,121970.0,0.001]
[1752490017423,0.64190419,121980.0,121970.0,0.003]
[1752490018098,0.64190419,121980.0,121970.0,0.001]
[1752490018729,0.23347334,121970.0,121960.0,0.19597671]
[1752490018947,0.56084119,121970.0,121960.0,0.19597671]
[1752490019377,0.23861334,121970.0,121960.0,0.06233671]
[1752490019842,0.23861334,121970.0,121960.0,0.19593671]
[1752490020402,0.24061334,121970.0,121960.0,0.19593671]
[1752490020727,0.24061334,121970.0,121960.0,0.06233671]
[1752490020940,0.24061334,121970.0,121960.0,0.19589671]
[1752490021792,0.24061334,121970.0,121960.0,0.06233671]
[1752490022003,0.56284119,121970.0,121960.0,0.06233671]
[1752490022422,0.24061334,121970.0,121960.0,0.06233671]
[1752490022622,0.24061334,121970.0,121960.0,0.19585671]
[1752490023269,0.24061334,121970.0,121960.0,0.06233671]
[1752490023523,0.24061334,121970.0,121960.0,0.19585671]
[1752490025753,0.24061334,121970.0,121960.0,0.19581671]
[1752490026546,0.24061334,121970.0,121960.0,0.06233671]
[1752490026747,0.24061334,121970.0,121960.0,0.19581671]
[1752490028813,0.56284119,121970.0,121960.0,0.19581671]
[1752490029005,0.56284119,121970.0,121960.0,0.06233671]
[1752490029204,0.24061334,121970.0,121960.0,0.19577671]
[1752490029488,0.56284119,121970.0,121960.0,0.19577671]
[1752490030641,0.24061334,121970.0,121960.0,0.19577671]
[1752490030844,0.56284119,121970.0,121960.0,0.19573671]
[1752490031296,0.56284119,121970.0,121960.0,0.06233671]
[1752490031423,0.24061334,121970.0,121960.0,0.06233671]
[1752490031747,0.24061334,121970.0,121960.0,0.19573671]
[1752490033432,0.56284119,121970.0,121960.0,0.06233671]
[1752490033845,0.56284119,121970.0,121960.0,0.19569671]
[1752490034248,0.56284119,121970.0,121960.0,0.06233671]
[1752490034401,0.56284119,121970.0,121960.0,0.19569671]
[1752490035402,0.56284119,121970.0,121960.0,0.06233671]
[1752490035603,0.56284119,121970.0,121960.0,0.19565671]
[1752490036825,0.24061334,121970.0,121960.0,0.19565671]
[1752490037252,0.56284119,121970.0,121960.0,0.19565671]
[1752490037647,0.56284119,121970.0,121960.0,0.19561671]
[1752490039044,0.20911334,121970.0,121960.0,0.19561671]
[1752490039247,0.17931334,121970.0,121960.0,0.19561671]
[1752490039599,0.17631334,121970.0,121960.0,0.19771671]
[1752490040006,0.17631334,121970.0,121960.0,0.20071671]
[1752490040879,0.17631334,121970.0,121960.0,0.06743671]
[1752490041127,0.17631334,121970.0,121960.0,0.20067671]
[1752490041284,0.17631334,121970.0,121960.0,0.19767671]
[1752490041886,0.17631334,121970.0,121960.0,0.19763671]
[1752490042896,0.17631334,121970.0,121960.0,0.58506456]
[1752490042897,0.17417334,121970.0,121960.0,0.58506456]
[1752490043113,0.17417334,121970.0,121960.0,0.09923671]
[1752490043294,0.56174119,121970.0,121960.0,0.06233671]
[1752490043713,0.56174119,121970.0,121960.0,0.19553671]
[1752490043909,0.56174119,121970.0,121960.0,0.19549671]
[1752490044523,0.70816599,121970.0,121960.0,0.01233671]
[1752490044966,0.84132599,121970.0,121960.0,0.01233671]
[1752490045475,0.83842885,121970.0,121960.0,0.01233671]
[1752490047579,0.77335116,121970.0,121960.0,0.01233671]
[1752490048051,0.64019116,121970.0,121960.0,0.01233671]
[1752490048292,0.77331116,121970.0,121960.0,0.01233671]
[1752490048468,0.45108331,121970.0,121960.0,0.01233671]
[1752490048774,0.77331116,121970.0,121960.0,0.01233671]
[1752490049136,0.57518746,121960.0,121950.0,1e-08]
[1752490049321,0.98408242,121960.0,121950.0,1e-08]
[1752490049521,0.66185457,121960.0,121950.0,1e-08]
[1752490049754,1.11716242,121960.0,121950.0,1e-08]
[1752490051178,0.79493457,121960.0,121950.0,1e-08]
[1752490051526,1.12016242,121960.0,121950.0,1e-08]
[1752490051708,0.66485457,121960.0,121950.0,1e-08]
[1752490051909,0.79789457,121960.0,121950.0,1e-08]
[1752490052236,1.12212242,121960.0,121950.0,1e-08]
[1752490052463,0.98908242,121960.0,121950.0,1e-08]
[1752490052671,1.12212242,121960.0,121950.0,1e-08]
[1752490052888,0.98908242,121960.0,121950.0,1e-08]
[1752490053107,1.12212242,121960.0,121950.0,1e-08]
[1752490053288,0.98908242,121960.0,121950.0,1e-08]
[1752490053534,1.12212242,121960.0,121950.0,1e-08]
[1752490053779,1.38908242,121960.0,121950.0,1e-08]
[1752490053962,1.52212242,121960.0,121950.0,1e-08]
[1752490055812,1.38908242,121960.0,121950.0,1e-08]
[1752490056045,1.52208242,121960.0,121950.0,1e-08]
[1752490058654,1.12208242,121960.0,121950.0,1e-08]
[1752490058870,0.98908242,121960.0,121950.0,1e-08]
[1752490059076,1.12204242,121960.0,121950.0,1e-08]
[1752490060551,0.98908242,121960.0,121950.0,1e-08]
[1752490060751,0.79977457,121960.0,121950.0,1e-08]
[1752490061126,0.98908242,121960.0,121950.0,1e-08]
[1752490061620,1.12200242,121960.0,121950.0,1e-08]
[1752490062866,0.79977457,121960.0,121950.0,1e-08]
[1752490063117,0.98908242,121960.0,121950.0,1e-08]
[1752490063320,1.12200242,121960.0,121950.0,1e-08]
[1752490064644,1.12192242,121960.0,121950.0,1e-08]
[1752490065604,0.98908242,121960.0,121950.0,1e-08]
[1752490066008,1.12192242,121960.0,121950.0,1e-08]
[1752490072228,1.44415027,121960.0,121950.0,1e-08]
[1752490072773,1.12192242,121960.0,121950.0,1e-08]
[1752490074570,1.44415027,121960.0,121950.0,1e-08]
[1752490074926,1.44415027,121960.0,121950.0,0.00030801]
[1752490076419,1.44399027,121960.0,121950.0,1e-08]
[1752490076623,1.31131027,121960.0,121950.0,1e-08]
[1752490077055,0.23240158,121950.0,121940.0,1e-08]
[1752490077278,1.11354654,121950.0,121940.0,1e-08]
[1752490078066,0.98190654,121950.0,121940.0,1e-08]
[1752490078266,1.11454654,121950.0,121940.0,1e-08]
[1752490079101,1.11654654,121950.0,121940.0,1e-08]
[1752490079331,0.98390654,121950.0,121940.0,1e-08]
[1752490079541,1.11654654,121950.0,121940.0,1e-08]
[1752490080381,1.38390654,121950.0,121940.0,1e-08]
[1752490080609,1.51650654,121950.0,121940.0,1e-08]
[1752490083074,1.38390654,121950.0,121940.0,1e-08]
[1752490083280,1.45626654,121950.0,121940.0,1e-08]
[1752490083539,1.05626654,121950.0,121940.0,1e-08]
[1752490084468,0.59654869,121950.0,121940.0,0.03437001]
[1752490084668,0.25654869,121950.0,121940.0,0.11587001]
[1752490090293,0.17520158,121950.0,121940.0,0.11587001]
[1752490090651,0.17520158,121950.0,121940.0,0.43809786]
[1752490090837,0.17520158,121950.0,121940.0,0.57053786]
[1752490091412,0.17520158,121950.0,121940.0,0.67053786]
[1752490091911,0.17520158,121950.0,121940.0,0.53809786]
[1752490092061,0.17520158,121950.0,121940.0,0.21587001]
[1752490092266,0.17520158,121950.0,121940.0,0.34827001]
[1752490093268,0.17520158,121950.0,121940.0,0.21587001]
[1752490093400,0.17520158,121950.0,121940.0,0.34827001]
[1752490093799,0.17520158,121950.0,121940.0,0.21587001]
[1752490094157,0.17520158,121950.0,121940.0,0.34827001]
[1752490095116,0.17520158,121950.0,121940.0,0.21587001]
[1752490095577,0.17520158,121950.0,121940.0,0.34823001]
[1752490096729,0.17520158,121950.0,121940.0,0.21587001]
[1752490096938,0.17520158,121950.0,121940.0,0.34819001]
[1752490097144,0.17520158,121950.0,121940.0,0.21587001]
[1752490097533,0.17520158,121950.0,121940.0,0.34819001]
[1752490099095,0.17520158,121950.0,121940.0,0.21587001]
[1752490099320,0.17520158,121950.0,121940.0,0.34815001]
[1752490099569,0.17520158,121950.0,121940.0,0.21587001]
[1752490099775,0.17520158,121950.0,121940.0,0.34815001]
[1752490099975,0.17520158,121950.0,121940.0,0.21587001]
[1752490100384,0.17520158,121950.0,121940.0,0.34815001]
[1752490102674,0.17520158,121950.0,121940.0,0.34811001]
[1752490104879,0.17520158,121950.0,121940.0,0.21587001]
[1752490105091,0.17520158,121950.0,121940.0,0.34807001]
[1752490105508,0.17520158,121950.0,121940.0,0.21587001]
[1752490105727,0.17520158,121950.0,121940.0,0.34807001]
[1752490108518,0.17520158,121950.0,121940.0,0.21587001]
[1752490108726,0.17520158,121950.0,121940.0,0.34803001]
[1752490109692,0.17520158,121950.0,121940.0,0.21587001]
[1752490109896,0.17520158,121950.0,121940.0,0.34803001]
[1752490111178,0.17520158,121950.0,121940.0,0.34795001]
[1752490112474,0.17520158,121950.0,121940.0,0.21587001]
[1752490112694,0.17520158,121950.0,121940.0,0.34795001]
[1752490113433,0.17520158,121950.0,121940.0,0.21587001]
[1752490113643,0.17520158,121950.0,121940.0,0.34791001]
[1752490113853,0.17520158,121950.0,121940.0,0.21587001]
[1752490113966,0.17520158,121950.0,121940.0,0.34791001]
[1752490114177,0.17520158,121950.0,121940.0,0.21587001]
[1752490114382,0.17520158,121950.0,121940.0,0.34791001]
[1752490119390,0.17520158,121950.0,121940.0,0.34783001]
[1752490120348,0.17520158,121950.0,121940.0,0.21587001]
[1752490120546,0.17520158,121950.0,121940.0,0.34783001]
[1752490121231,0.17520158,121950.0,121940.0,0.21587001]
[1752490121660,0.17520158,121950.0,121940.0,0.34779001]
[1752490121884,0.17520158,121950.0,121940.0,0.21587001]
[1752490122105,0.17520158,121950.0,121940.0,0.34779001]
[1752490123749,0.17520158,121950.0,121940.0,0.21587001]
[1752490123944,0.17520158,121950.0,121940.0,0.34779001]
[1752490124144,0.17520158,121950.0,121940.0,0.21587001]
[1752490124625,0.17520158,121950.0,121940.0,0.34775001]
[1752490124857,0.17520158,121950.0,121940.0,0.21587001]
[1752490125483,0.17520158,121950.0,121940.0,0.34775001]
[1752490126693,0.17520158,121950.0,121940.0,0.21587001]
[1752490126910,0.17520158,121950.0,121940.0,0.34775001]
[1752490128747,0.17520158,121950.0,121940.0,0.34767001]
[1752490132286,0.17520158,121950.0,121940.0,0.21587001]
[1752490132510,0.17520158,121950.0,121940.0,0.34763001]
[1752490133563,0.17720158,121950.0,121940.0,0.34763001]
[1752490133781,0.17720158,121950.0,121940.0,0.31613001]
[1752490134413,0.17720158,121950.0,121940.0,0.28683001]
[1752490135537,0.17720158,121950.0,121940.0,0.18377001]
[1752490135754,0.17720158,121950.0,121940.0,0.31549001]
[1752490136155,0.17720158,121950.0,121940.0,0.18377001]
[1752490136361,0.17720158,121950.0,121940.0,0.31549001]
[1752490136566,0.17520158,121950.0,121940.0,0.31549001]
[1752490136809,0.17520158,121950.0,121940.0,0.34569001]
[1752490137008,0.41710251,121950.0,121940.0,0.34569001]
[1752490137445,0.41494642,121950.0,121940.0,0.34569001]
[1752490139795,0.17304549,121950.0,121940.0,0.34569001]
[1752490140216,0.41494642,121950.0,121940.0,0.34561001]
[1752490140896,0.41494642,121950.0,121940.0,0.21397001]
[1752490141113,0.41494642,121950.0,121940.0,0.34561001]
[1752490141344,0.41699642,121950.0,121940.0,0.15211001]
[1752490141568,0.80319446,121950.0,121940.0,0.10000001]
[1752490141838,0.93483446,121950.0,121940.0,0.10000001]
[1752490142043,1.33479446,121950.0,121940.0,0.10000001]
[1752490142256,1.20229446,121950.0,121940.0,0.10000001]
[1752490142680,1.1184926,121950.0,121940.0,0.10000001]
[1752490142883,1.36039353,121950.0,121940.0,0.10000001]
[1752490143058,1.44113107,121950.0,121940.0,0.10000001]
[1752490143949,1.1184926,121950.0,121940.0,0.10000001]
[1752490144161,1.44113107,121950.0,121940.0,0.10000001]
[1752490151837,1.30953107,121950.0,121940.0,0.10000001]
[1752490152121,1.44105107,121950.0,121940.0,0.10000001]
[1752490152339,0.17222983,121930.0,121920.0,0.18348]
[1752490152555,0.4969183,121930.0,121920.0,0.18559]
[1752490152780,0.17427983,121930.0,121920.0,0.2201]
[1752490153195,0.17427983,121930.0,121920.0,0.08862]
[1752490153442,0.17427983,121930.0,121920.0,0.052]
[1752490153639,0.17427983,121930.0,121900.0,0.06681]
[1752490153640,0.17225808,121910.0,121900.0,0.06681]
[1752490153845,0.17225808,121910.0,121900.0,0.20036]
[1752490153846,0.17125808,121910.0,121900.0,0.20036]
[1752490154395,0.18200108,121910.0,121900.0,0.20036]
[1752490154798,0.18200108,121910.0,121900.0,0.20236]
[1752490154999,0.18200108,121910.0,121900.0,0.07107324]
[1752490155209,0.18405108,121910.0,121900.0,0.00415324]
[1752490155414,0.50983955,121910.0,121900.0,0.00515324]
[1752490156018,0.50983955,121910.0,121900.0,0.00415324]
[1752490156536,0.65298666,121910.0,121900.0,0.00215324]
[1752490156756,0.65398666,121910.0,121900.0,0.00215324]
[1752490157212,0.78538666,121910.0,121900.0,0.00215324]
[1752490158872,0.75478666,121910.0,121900.0,0.00215324]
[1752490159083,0.43214819,121910.0,121900.0,0.00215324]
[1752490159281,0.75478666,121910.0,121900.0,0.00215324]
[1752490159787,0.26954819,121910.0,121900.0,0.00215324]
[1752490159995,0.99108666,121910.0,121900.0,0.00215324]
[1752490163465,0.85968666,121910.0,121900.0,0.00215324]
[1752490163665,0.53704819,121910.0,121900.0,0.00215324]
[1752490163875,0.99100666,121910.0,121900.0,0.00215324]
[1752490164746,0.85968666,121910.0,121900.0,0.00215324]
[1752490164974,1.04980666,121910.0,121900.0,0.00215324]
[1752490165392,0.91848666,121910.0,121900.0,0.00215324]
[1752490166645,1.04980666,121910.0,121900.0,0.00215324]
[1752490167876,1.04976666,121910.0,121900.0,0.00215324]
[1752490168085,0.91848666,121910.0,121900.0,0.00215324]
[1752490168282,1.02026666,121910.0,121900.0,0.00215324]
[1752490169092,0.99096666,121910.0,121900.0,0.00215324]
[1752490170336,0.85968666,121910.0,121900.0,0.00215324]
[1752490170538,0.99092666,121910.0,121900.0,0.00215324]
[1752490172673,0.45050108,121910.0,121900.0,0.00742324]
[1752490172875,0.45050108,121910.0,121900.0,0.06892324]
[1752490173547,0.77830955,121910.0,121900.0,0.00420324]
[1752490173717,0.77830955,121910.0,121900.0,0.00215324]
[1752490174877,0.85965666,121910.0,121900.0,0.00215324]
[1752490175113,0.77913182,121910.0,121900.0,0.00215324]
[1752490177501,1.02124545,121910.0,121900.0,0.00215324]
[1752490177693,0.80933182,121910.0,121900.0,0.00215324]